Cogmind - Beta 13 @@@ ROGUE MODE // 2024.07.10 @ 15:52:13 Player: ThatBishHoly Result: Destroyed by G-47 Trooper with Particle Gun Performance ------------- Evolutions (2) 1000 Regions Visited (4) 800 Robots Destroyed (43) 215 Value Destroyed (1106) 1106 Prototype IDs (3) 60 Alien Tech Used (0) 0 Bonus (63) 63 TOTAL SCORE: 3244 Bonus ------- Follower Combat Kills 63 Cogmind --------- Core Integrity 0/550 Matter 190/300 Energy 7/100 System Corruption 0% Temperature Danger (415) Movement Core (50) Location -8/Materials Parts ------- > --- POWER (1) -------- (None) > --- PROPULSION (3) --- (None) > --- UTILITY (3) ------ (None) > --- WEAPON (4) ------- (None) > --- INVENTORY (5) ---- Carbon-fiber Leg Advanced Heat Sink Dynamic Insulation System Peak State ------------ > --- POWER ------------ Reinforced Deuterium Engine > --- PROPULSION ------- Aluminum Leg Aluminum Leg Carbon-fiber Leg > --- UTILITY ---------- Large Storage Unit Improved Sensor Array Tractor Beam > --- WEAPON ----------- Enhanced Autogun Enhanced Autogun Enhanced Autogun > --- INVENTORY -------- Nuclear Core Nuclear Core Improved Heat Sink Shock Rifle Heavy Particle Cannon Heavy Particle Cannon Heavy Particle Cannon [Rating: 28] Favorites ----------- Power Nuclear Core Engine Ion Engine Power Core Nuclear Core Propulsion Light Treads Treads Light Treads Leg Aluminum Leg Utility Large Storage Unit Device Tractor Beam Storage Large Storage Unit Protection Light Armor Plating Weapon Heavy Particle Cannon Energy Gun Shock Rifle Energy Cannon Heavy Particle Cannon Ballistic Gun Enhanced Autogun Launcher Grenade Launcher Build | -11 -10 -9 -9 -8 ------- Run | Yrd Mat Mat Min Mat Slots Evolved 4 | . . 2 . 2 Power . | . . . . . Propulsion 1 | . . 1 . . Utility 1 | . . . . 1 Weapon 2 | . . 1 . 1 Parts Attached 47 | 6 3 21 2 15 Power 3 | 1 . 1 . 1 Engine 2 | 1 . . . 1 Core 1 | . . 1 . . Reactor . | . . . . . Propulsion 13 | 2 . 6 1 4 Treads 9 | 2 . 6 1 . Leg 4 | . . . . 4 Wheel . | . . . . . Hover . | . . . . . Flight . | . . . . . Utility 7 | 1 1 2 1 2 Device 3 | . 1 . . 2 Storage 2 | 1 . 1 . . Processor . | . . . . . Hackware . | . . . . . Protection 2 | . . 1 1 . Artifact . | . . . . . Weapon 24 | 2 2 12 . 8 Energy Gun 7 | 1 1 4 . 1 Energy Cannon 7 | . . 3 . 4 Ballistic Gun 9 | 1 . 5 . 3 Ballistic Cannon . | . . . . . Launcher 1 | . 1 . . . Special Weapon . | . . . . . Impact Weapon . | . . . . . Slashing Weapon . | . . . . . Piercing Weapon . | . . . . . Special Melee Weapon . | . . . . . Unidentified Prototypes 2 | . . 1 . 1 Parts Lost 22 | . 1 3 1 17 Power 1 | . . . . 1 Propulsion 6 | . . . . 6 Utility 5 | . 1 . 1 3 Weapon 10 | . . 3 . 7 Highest Loss Streak 13 | . 1 3 1 13 To Critical Strikes . | . . . . . Average Slot Usage (%) 89 | . 90 89 98 78 Engine 4 | . 14 2 . 4 Core 6 | . . 8 11 4 Treads 25 | . 28 32 32 6 Leg 3 | . . . . 15 Device 3 | . 5 . . 8 Storage 10 | . 14 11 11 9 Protection 5 | . . 6 10 1 Energy Gun 8 | . 14 17 . . Energy Cannon 12 | . . 5 33 8 Ballistic Gun 6 | . 1 3 . 19 Launcher 2 | . 12 2 . . Naked Turns 2 | . . . . 2 Heaviest Build 54 | 13 16 52 52 54 Greatest Support 69 | 40 40 69 69 66 Greatest Overweight (x) 3 | . . . 1 3 Average Overweight (x) . | . . . . . Largest Inventory Capacity 15 | 8 8 15 15 15 Average Capacity 12 | 7 8 11 15 14 Most Carried 9 | 5 4 6 6 9 Average Carried 3 | . 2 2 3 5 Final Capacity 15 | 8 8 15 15 5 Final Carried 4 | . 4 3 3 3 Class Distribution -------------------- 37% | Tank 29% | Mutant 15% | Gunner 12% | Scavenger-Skirmisher 4% | Bomber Dominant Class ---------------- Mutant | -10/Materials Tank | -9/Materials Tank | -9/Mines Scavenger-Skirmisher | -8/Materials Resources | -11 -10 -9 -9 -8 ----------- Run | Yrd Mat Mat Min Mat Matter Collected 1107 | 202 . 290 244 371 Remotely 188 | . . . . 188 Salvage Created 1346 | . 101 170 169 906 Parts 95 | . 12 20 13 50 Haulers Intercepted . | . . . . . Recyclers Shooed 2 | . 1 . 1 . Parts Field Recycled . | . . . . . Retrieved Matter . | . . . . . Parts Self-Destructed . | . . . . . Prevented . | . . . . . Kills | -11 -10 -9 -9 -8 ------- Run | Yrd Mat Mat Min Mat Combat Hostiles Destroyed 35 | . 6 6 5 18 Melee 2 | . . 2 . . Guns 16 | . . 1 . 15 Cannons 11 | . . 3 5 3 AOE 6 | . 6 . . . Classes Destroyed 10 | . 4 1 2 3 Worker 4 | . 1 1 . 2 Recycler 2 | . 1 . . 1 Mechanic 1 | . . . . 1 Operator 1 | . 1 . . . Swarmer 18 | . 6 4 2 6 Grunt 11 | . . . 2 9 Brawler 1 | . . . 1 . Sentry 3 | . . 2 . 1 Specialist 1 | . . . . 1 Heavy 1 | . . . . 1 Best Kill Streak 11 | . 6 2 3 11 Combat Bots Only 7 | . 3 2 3 7 Max Kills in Single Turn 3 | . 3 1 1 2 Gunslinging 1 | . . . . 1 Exploded 2 | . 2 . . . Melee 1 | . . 1 . . Uniques/NPCs Destroyed . | . . . . . Combat | -11 -10 -9 -9 -8 -------- Run | Yrd Mat Mat Min Mat Hostile Shots Fired 279 | . 9 65 39 166 Missed 44 | . 5 12 5 22 Damage Taken 3428 | . 146 559 378 2345 Core 656 | . . 15 78 563 Absorbed by Shields . | . . . . . Core Remaining (%) 92 | 100 100 . 76 . Volleys Fired 67 | . 10 11 7 39 Largest 4 | . 2 3 3 4 Hottest 300 | . 80 225 225 300 Shots Fired 184 | . 14 33 19 118 Gun 121 | . 4 24 . 93 Cannon 53 | . . 9 19 25 Launcher 10 | . 10 . . . Special . | . . . . . Kinetic 92 | . . . . 92 Thermal 57 | . 4 9 19 25 Explosive 10 | . 10 . . . Electromagnetic 25 | . . 24 . 1 Robot Hit Streak 6 | . 3 4 5 6 Robot Miss Streak 5 | . 1 3 2 5 Penetration Max . | . . . . . Secondary Targets 7 | . . . . 7 Max Gunslinging Chain 2 | . . . . 2 Shots Hit Robots 92 | . 6 15 8 63 Core Hits 59 | . 7 9 5 38 Critical Kills 1 | . . . . 1 Critical Parts Destroyed . | . . . . . Critical Strikes 1 | . . . . 1 Destroy 1 | . . . . 1 Melee Attacks . | . . . . . Impact . | . . . . . Slashing . | . . . . . Piercing . | . . . . . Sneak Attacks . | . . . . . Combat Hostiles . | . . . . . Follow-up Attacks . | . . . . . Damage Inflicted 2613 | . 713 367 250 1283 Guns 1203 | . 13 183 . 1007 Cannons 625 | . . 125 225 275 Explosions 721 | . 700 21 . . Melee . | . . . . . Ramming 64 | . . 38 25 1 Kinetic 990 | . . . . 990 Thermal 759 | . 113 146 225 275 Explosive 600 | . 600 . . . Electromagnetic 200 | . . 183 . 17 Impact . | . . . . . Slashing . | . . . . . Piercing . | . . . . . Highest Corruption . | . . . . . Average Corruption . | . . . . . Corruption Purged . | . . . . . Corruption Blocked . | . . . . . Overload Shots . | . . . . . Overflow Damage 151 | . 146 5 . . Projectiles . | . . . . . Explosions 151 | . 146 5 . . Melee . | . . . . . Knockbacks . | . . . . . Impact . | . . . . . Kinetic . | . . . . . Secondary . | . . . . . Self-Inflicted Damage 134 | . 117 17 . . Shots 6 | . 5 1 . . Rammed 13 | . . 10 2 1 Targets Rammed 14 | . . 11 2 1 Kicked . | . . . . . Crushed 1 | . . 1 . . Highest Temperature 744 | . 36 533 738 744 Average Temperature 251 | . 15 186 389 250 Received Heat Transfer 1008 | . . 63 108 837 Effects 50 | . . 6 23 21 Shutdowns 7 | . . 2 3 2 Energy Bleed 10 | . . 1 4 5 Interference 12 | . . . 7 5 Matter Decay 7 | . . 1 5 1 Short Circuit 5 | . . 1 1 3 Damage (minor) 4 | . . 1 1 2 Damage (major) 3 | . . . 1 2 Damage (core) 2 | . . . 1 1 Siege Activations . | . . . . . Robots Corrupted . | . . . . . Combat Hostiles . | . . . . . Parts Fried . | . . . . . Impact Corruptions . | . . . . . Robots Melted . | . . . . . Combat Hostiles . | . . . . . Parts Melted 2 | . . 1 1 . Heat Transferred 1062 | . 87 235 333 407 Parts Sabotaged . | . . . . . Parts Stolen . | . . . . . Parts Stripped . | . . . . . Power Chain Reactions 1 | . . 1 . . Alert | -11 -10 -9 -9 -8 ------- Run | Yrd Mat Mat Min Mat Peak Influence 356 | . 349 241 288 356 Initial 146 | . . 146 84 33 Average 178 | . 125 160 206 254 Maximum Alert Level 1 | . 1 1 1 1 Low Security (%) 52 | 100 90 64 18 33 Level 1 47 | . 9 35 81 66 Level 2 . | . . . . . Level 3 . | . . . . . Level 4 . | . . . . . Level 5 . | . . . . . High Security . | . . . . . Max Security . | . . . . . Squads Dispatched 5 | . . . . 5 Investigation 2 | . . . . 2 Extermination . | . . . . . Reinforcement 2 | . . . . 2 Assault . | . . . . . Garrison 1 | . . . . 1 Intercept . | . . . . . Searches Triggered . | . . . . . Construction Impeded . | . . . . . Haulers Reinforced . | . . . . . Active Scanning Responses . | . . . . . Cargo Convoy Interrupts . | . . . . . Stealth | -11 -10 -9 -9 -8 --------- Run | Yrd Mat Mat Min Mat Distress Signals 3 | . . 1 . 2 Communications Jammed . | . . . . . Distress Signals . | . . . . . Times Spotted 62 | . 10 12 11 29 Peak Tracking Total 11 | . 4 5 7 11 Tactical Retreats 3 | . . 2 . 1 Traps | -11 -10 -9 -9 -8 ------- Run | Yrd Mat Mat Min Mat Traps Triggered 1 | . . . . 1 Indirectly . | . . . . . Trap Hack Attempts . | . . . . . Triggered . | . . . . . Disarmed . | . . . . . Reprogrammed . | . . . . . Reused . | . . . . . Traps Extracted . | . . . . . Installed . | . . . . . Triggered . | . . . . . Machines | -11 -10 -9 -9 -8 ---------- Run | Yrd Mat Mat Min Mat Machines Disabled 8 | . 6 1 1 . Max in Single Turn 3 | . 3 1 1 . Machines Repaired . | . . . . . Machines Dismantled . | . . . . . Machines Sabotaged . | . . . . . Overloaded Fab Kills . | . . . . . Hacking | -11 -10 -9 -9 -8 --------- Run | Yrd Mat Mat Min Mat Machines Accessed 5 | . 1 3 . 1 Terminals 5 | . 1 3 . 1 Fabricators . | . . . . . Repair Stations . | . . . . . Recycling Units . | . . . . . Scanalyzers . | . . . . . Garrison Access . | . . . . . Total Hacks 12 | . 2 6 . 4 Successful 7 | . 1 3 . 3 Failed 5 | . 1 3 . 1 Catastrophic . | . . . . . Database Lockouts . | . . . . . Manual . | . . . . . Terminals 12 | . 2 6 . 4 Fabricators . | . . . . . Repair Stations . | . . . . . Recycling Units . | . . . . . Scanalyzers . | . . . . . Garrison Access . | . . . . . Terminal Hacks 7 | . 1 3 . 3 Record 4 | . . 2 . 2 Prototype ID Bank 1 | . . 1 . . Hauler Manifests 2 | . 1 . . 1 Fabricator Hacks . | . . . . . Repair Station Hacks . | . . . . . Recycling Unit Hacks . | . . . . . Scanalyzer . | . . . . . Garrison Access Hacks . | . . . . . Unauthorized Hacks . | . . . . . Terminals . | . . . . . Fabricators . | . . . . . Repair Stations . | . . . . . Recycling Units . | . . . . . Scanalyzers . | . . . . . Garrison Access . | . . . . . Data Cores Recovered . | . . . . . Used . | . . . . . Hacking Detections 4 | . 1 2 . 1 Full Trace Events 2 | . . 1 . 1 Feedback Events . | . . . . . Feedback Blocked . | . . . . . Robot Schematics Acquired . | . . . . . Robots Built . | . . . . . Authchips . | . . . . . Time . | . . . . . Total Robot Build Rating . | . . . . . Part Schematics Acquired . | . . . . . Parts Built . | . . . . . Authchips . | . . . . . Time . | . . . . . Total Part Build Rating . | . . . . . Parts Repaired . | . . . . . Time . | . . . . . Parts Recycled . | . . . . . Recycled Matter . | . . . . . Retrieved Matter . | . . . . . Retrieved Components . | . . . . . Parts Scanalyzed . | . . . . . Part Schematics Acquired . | . . . . . Parts Damaged . | . . . . . Bothacking | -11 -10 -9 -9 -8 ------------ Run | Yrd Mat Mat Min Mat Used RIF Installer . | . . . . . Robots Hacked . | . . . . . Non-combat . | . . . . . Combat . | . . . . . Robot Hacks Applied . | . . . . . Relay Couplers Released . | . . . . . Fabnet Peak Effective % . | . . . . . Robots Rewired . | . . . . . Allies Hacked . | . . . . . Hacks Repelled . | . . . . . Allies | -11 -10 -9 -9 -8 -------- Run | Yrd Mat Mat Min Mat Total Allies 3 | . . . 3 . Largest Group 3 | . . . 3 3 Highest-Rated Group 40 | . . . 40 40 Highest-Rated Ally 16 | . . . 16 16 Total Orders . | . . . . . Ally Attacks 35 | . . . 22 13 Total Damage 303 | . . . 204 99 Kills 4 | . . . 3 1 Allies Corrupted . | . . . . . Allies Melted . | . . . . . Intel | -11 -10 -9 -9 -8 ------- Run | Yrd Mat Mat Min Mat Robot Analysis Total . | . . . . . Derelict Logs Recovered . | . . . . . Drone Launches . | . . . . . Drone Recoveries . | . . . . . Exploration | -11 -10 -9 -9 -8 ------------- Run | Yrd Mat Mat Min Mat Turns Passed 1895 | 115 270 613 440 457 Spaces Moved 930 | 75 148 282 255 170 Core 17 | 14 . . . 3 Treads 801 | 61 148 282 255 55 Legs 112 | . . . . 112 Wheels . | . . . . . Hover . | . . . . . Flight . | . . . . . Fastest Speed 50 | 50 160 160 160 50 Average Speed 164 | 139 160 160 160 191 Slowest Speed 330 | 160 160 160 240 330 Overloaded Moves . | . . . . . Propulsion Burnouts . | . . . . . Robots Hopped . | . . . . . Cave-ins Triggered . | . . . . . Exploration Rate (%) 27 | 5 41 14 62 14 Regions Visited 4 Branch Regions 1 Pre-discovered Areas . | . . . . . Known Exits Taken . | . . . . . Unknown Exits Taken 4 | 1 1 1 1 . Scrap Searched 1 | . . . 1 . Spaces Dug 2 | . 2 . . . Terrain Destroyed 106 | . 79 11 8 8 Melee . | . . . . . Projectile 20 | . . 4 8 8 AOE 86 | . 79 7 . . Terrain Rammed . | . . . . . Walls Destroyed . | . . . . . Machines Disabled . | . . . . . Actions | -11 -10 -9 -9 -8 --------- Run | Yrd Mat Mat Min Mat Total 1196 | 86 167 419 272 252 Wait 63 | . . 57 . 6 Move 926 | 74 147 281 254 170 Hop . | . . . . . Pick Up 48 | 6 6 18 4 14 Fast Attach . | . . . . . Attach 35 | 6 1 14 2 12 Detach 8 | . . 7 . 1 Swap 12 | . 2 7 . 3 Drop 23 | . 1 13 3 6 Fire 67 | . 10 11 7 39 Melee . | . . . . . Ram . | . . . . . Kick . | . . . . . Crush 14 | . . 11 2 1 Escape Stasis . | . . . . . Rewire . | . . . . . Trap . | . . . . . Miscellaneous . | . . . . . Route ------- -11/Scrapyard -10/Materials (discovered 2 exits: *Mat / [*Min]) -9/Materials -9/Mines (discovered 2 exits: *Mat x2) -8/Materials History --------- Turn | Location | Event 5 | -11/Scrapyard | Discovered new exit (range 15) 116 | -11/Scrapyard | Entered Materials 302 | -10/Materials | Discovered new exit (range 7) 306 | -10/Materials | Build established: Mutant 380 | -10/Materials | Discovered new exit (range 4) 386 | -10/Materials | Entered another Materials area 386 | -9/Materials | Evolved 2 slots: Propulsion x1, Weapon x1 746 | -9/Materials | Discovered new exit (range 13) 841 | -9/Materials | Lost 3 parts (3w) 999 | -9/Materials | Entered Mines 999 | -9/Mines | Discovered new exit (range 7) 1196 | -9/Mines | Assisted by bots powering up and referring to "LRC-V3" 1381 | -9/Mines | Build established: Tank 1418 | -9/Mines | Discovered new exit (range 11) 1439 | -9/Mines | Entered Materials 1439 | -8/Materials | Accompanied by 3 allies 1439 | -8/Materials | Evolved 2 slots: Utility x1, Weapon x1 1546 | -8/Materials | Lost 3 allies 1567 | -8/Materials | Lost 4 parts (2n1u1w) 1617 | -8/Materials | Destroyed 7 combat bots 1846 | -8/Materials | Garrison activated, responded to threat 1871 | -8/Materials | Core integrity fell below 50% 1885 | -8/Materials | Core integrity fell below 20% 1896 | -8/Materials | Destroyed by G-47 Trooper with Particle Gun Last Messages --------------- 01889_ U-05 Engineer builds a Wall. 01890_ Penetrated by Slug. 01890_ Carbon-fiber Leg destroyed. 01891_ K-01 Serf collects debris. 01892_ Overheating: Hvy. Particle Cannon damaged (-5). 01892_ U-05 Engineer builds a Wall. 01893_ Dropped Lrg. Storage Unit. 01893_ U-05 Engineer builds a Wall. 01894_ Overheating: Hvy. Particle Cannon damaged (-3). 01894_ Overheating: Hvy. Particle Cannon damaged (-13). 01894_ Dropped Hvy. Particle Cannon. 01894_ K-01 Serf collects debris. 01894_ Hvy. Particle Cannon destroyed. 01895_ U-05 Engineer builds a Wall. 01895_ Acquired 8 matter. 01896_ R-06 Scavenger collects Wheel. 01896_ Terminal disabled. Map ----- +----------------------------------------------------+ | ????????????????????????????????????###?????????# | | ?????????????????????????????????########???????# | | ??????????????????######?????????# % #???????# | | ??????????????????# #?????????# ] #???????# | | ??????????????????# T #?????????# #???????# | | ??????????????????# ]#?????????# #???????# | | ??????????????????#] #?????????# =!#???????# | | ??????????????????# #?????????# *%%[#??????## | | ??????????????????# #??##+########+########## | | ??????????????????#[ #??#= %*%=[% [%! | | ??????????????????# ####[* !%%% % *= | | ??????????????????# "%%[%% =[ *%! ! | | ??????????????????###+########+######= %######## | | ??????????????????? ## #?# #??????## | | ???????????????????? [ ## #?# #???????# | | ??????????????????? !%*[## #?#=%=#???????# | | ???????????????????######%=%## #?#%*%#???????+ | | ????????????????????????#%! ## #?# #???????# | | ????????????????????????#== ## #?# % #???????# | | ???????????????????????##|%H## ### ##??????# | | ???????????????????????# k ####### % ####### | | ???????????????????????# g!ug u % | | ???????????????????????# %s = | | ???????????????????????# gg% | | ???????????????????????# !]####### ####### | | ???????????????????????##@###"#????#######?????## | | ????????????????????????# #####?????????????????? | | ????????????????????????# #??????????????????????? | | ????????????????????????# #??????????????????????? | | ????????????????????????# #??????????????????????? | | ????????????????????????# #??????????????????????? | | ????????????????????????#t#??????????????????????? | | ????????????????????????# #??????????????????????? | | ????????????????????????# #??????????????????????? | | ?????????????????????????u???????????????????????? | | ????????????????????????? ???????????????????????? | | ????????????????????????? ???????????????????????? | | ?????????????????????????k???????????????????????? | | ????????????????????????? ???????????????????????? | | ????????????????????????? ???????????????????????? | | ????????????????????????? ???????????????????????? | | ?????????????????????????????????????????????????? | | ?????????????????????????????????????????????????? | | ?????????????????????????????????????????????????? | | ?????????????????????????????????????????????????? | | ?????????????????????????????????????????????????? | | ?????????????????????????????????????????????????? | | ?????????????????????????????????????????????????? | | ?????????????????????????????????????????????????? | | ?????????????????????????????????????????????????? | +----------------------------------------------------+ Best States ------------- Heat Dissipation 31 Energy Generation 16 Energy Capacity 290 Matter Stores 300 Matter Capacity 300 Sight Range 16 Robot Scan Range 15 Terrain Scan Density 10 Armor Coverage 225 Evasion (%) 50 Recoil Reduction 3 Item Schematics ----------------- None Robot Schematics ------------------ None Fabricated ------------ Nothing Alien Tech Used ----------------- None Achievements -------------- None Challenges ------------ None Game ------ Seed GaussPointArchive Manual? 0 Play Time 00:22:25 Cumulative 45.4 hours Start 2024.07.10 @ 15:30:32 End 2024.07.10 @ 15:52:13 Sessions 1 Manual Loads 0 Difficulty Rogue Special Mode None Game No. 127 Rogue 127 Adventurer 0 Explorer 0 Win Type - Total 0 Types 0/0/0/0/0/0/0/0/0 Lore% 19 Gallery% 36 Achievement% 25 Wizard Run 0 Options --------- Layout 2 ASCII 0 Keyboard 0 Movement Mouse Keybinds 0 Fullscreen 1 Font 48/Smallcaps Map View 25x22 Zoom Use 93% Tactical HUD 1 Map Filters NONE Filters NONE Steam 1 RUN: 27110b96-0fef-453c-935a-4b562da5b56e